[Event "December 5 Late 2023"]
[Site "https://www.chess.com"]
[Date "2023.12.05"]
[Round "3"]
[White "Gledura, Benjamin"]
[Black "Diaz, Fernando"]
[Result "1-0"]
[Board "40"]
[TimeControl "180+1"]
[WhiteFideId "712779"]
[BlackFideId "3701255"]
[WhiteElo "2850"]
[BlackElo "2364"]
[WhiteTeam "HUN"]
[BlackTeam "PAR"]
[WhiteClock "0:00:32"]
[BlackClock "0:00:07"]

1. Nf3 {[%clk 0:02:54]}  Nf6 {[%clk 0:02:59]} 2. c4 {[%clk 0:02:53]}  d6 {[%clk 0:02:55]} 3. d4 {[%clk 0:02:53]}  g6 {[%clk 0:02:55]} 4. g3 {[%clk 0:02:52]}  Bg7 {[%clk 0:02:55]} 5. Bg2 {[%clk 0:02:53]}  c6 {[%clk 0:02:56]} 6. O-O {[%clk 0:02:53]}  O-O {[%clk 0:02:57]} 7. Nc3 {[%clk 0:02:53]}  Nbd7 {[%clk 0:02:57]} 8. e4 {[%clk 0:02:52]}  e5 {[%clk 0:02:57]} 9. h3 {[%clk 0:02:50]}  Qc7 {[%clk 0:02:55]} 10. Be3 {[%clk 0:02:49]}  a5 {[%clk 0:02:54]} 11. d5 {[%clk 0:02:47]}  c5 {[%clk 0:02:52]} 12. Nb5 {[%clk 0:02:45]}  Qb8 {[%clk 0:02:49]} 13. b3 {[%clk 0:02:41]}  Nxe4 {[%clk 0:02:47]} 14. Qc2 {[%clk 0:01:59]}  f5 {[%clk 0:02:45]} 15. Rae1 {[%clk 0:01:58]}  Ndf6 {[%clk 0:02:05]} 16. Bc1 {[%clk 0:01:55]}  Bd7 {[%clk 0:02:02]} 17. a4 {[%clk 0:01:46]}  h6 {[%clk 0:01:51]} 18. Nh4 {[%clk 0:01:45]}  Kh7 {[%clk 0:01:51]} 19. g4 {[%clk 0:01:40]}  Qd8 {[%clk 0:01:14]} 20. gxf5 {[%clk 0:01:29]}  gxf5 {[%clk 0:01:13]} 21. f4 {[%clk 0:01:02]}  Ng3 {[%clk 0:01:07]} 22. Nxd6 {[%clk 0:00:54]}  Nfe4 {[%clk 0:00:52]} 23. Nxe4 {[%clk 0:00:52]}  Nxe4 {[%clk 0:00:36]} 24. Nxf5 {[%clk 0:00:48]}  Bxf5 {[%clk 0:00:34]} 25. Bxe4 {[%clk 0:00:48]}  Kh8 {[%clk 0:00:20]} 26. Bxf5 {[%clk 0:00:47]}  Qh4 {[%clk 0:00:14]} 27. fxe5 {[%clk 0:00:36]}  Qg3+ {[%clk 0:00:11]} 28. Qg2 {[%clk 0:00:35]}  Bxe5 {[%clk 0:00:10]} 29. Qxg3 {[%clk 0:00:34]}  Bxg3 {[%clk 0:00:07]} 30. Bb2+ {[%clk 0:00:32]} 1-0

[Event "December 5 Late 2023"]
[Site "https://www.chess.com"]
[Date "2023.12.05"]
[Round "3"]
[White "Andreikin, Dmitry"]
[Black "Mis, Mieszko"]
[Result "1-0"]
[Board "41"]
[TimeControl "180+1"]
[WhiteFideId "4158814"]
[BlackFideId "1196448"]
[WhiteElo "3105"]
[BlackElo "2657"]
[WhiteTeam "FID"]
[BlackTeam "POL"]
[WhiteClock "0:02:10"]
[BlackClock "0:01:14"]

1. Nf3 {[%clk 0:02:52]}  g6 {[%clk 0:02:59]} 2. e4 {[%clk 0:02:50]}  Bg7 {[%clk 0:02:57]} 3. d4 {[%clk 0:02:50]}  d6 {[%clk 0:02:52]} 4. Bc4 {[%clk 0:02:50]}  Nf6 {[%clk 0:02:51]} 5. Qe2 {[%clk 0:02:50]}  O-O {[%clk 0:02:50]} 6. e5 {[%clk 0:02:51]}  Ne8 {[%clk 0:02:45]} 7. h3 {[%clk 0:02:50]}  Nc6 {[%clk 0:02:44]} 8. O-O {[%clk 0:02:48]}  Na5 {[%clk 0:02:39]} 9. Bd3 {[%clk 0:02:45]}  Nc6 {[%clk 0:02:20]} 10. Nc3 {[%clk 0:02:43]}  dxe5 {[%clk 0:02:18]} 11. dxe5 {[%clk 0:02:42]}  Nd4 {[%clk 0:02:18]} 12. Nxd4 {[%clk 0:02:42]}  Qxd4 {[%clk 0:02:19]} 13. Re1 {[%clk 0:02:41]}  c6 {[%clk 0:02:16]} 14. Bg5 {[%clk 0:02:40]}  f6 {[%clk 0:01:44]} 15. exf6 {[%clk 0:02:39]}  exf6 {[%clk 0:01:45]} 16. Rad1 {[%clk 0:02:33]}  Qb4 {[%clk 0:01:37]} 17. Bc4+ {[%clk 0:02:21]}  Kh8 {[%clk 0:01:36]} 18. Bc1 {[%clk 0:02:17]}  Nd6 {[%clk 0:01:32]} 19. Bb3 {[%clk 0:02:16]}  Nf5 {[%clk 0:01:32]} 20. a3 {[%clk 0:02:15]}  Qb6 {[%clk 0:01:31]} 21. Na4 {[%clk 0:02:10]}  Qc7 {[%clk 0:01:26]} 22. Nc5 {[%clk 0:02:10]}  b6 {[%clk 0:01:25]} 23. Ne6 {[%clk 0:02:08]}  Bxe6 {[%clk 0:01:23]} 24. Qxe6 {[%clk 0:02:08]}  Rad8 {[%clk 0:01:17]} 25. Rxd8 {[%clk 0:02:08]}  Rxd8 {[%clk 0:01:15]} 26. Qe8+ {[%clk 0:02:08]}  Rxe8 {[%clk 0:01:13]} 27. Rxe8+ {[%clk 0:02:08]}  Bf8 {[%clk 0:01:14]} 28. Rxf8+ {[%clk 0:02:09]}  Kg7 {[%clk 0:01:14]} 29. Rg8# {[%clk 0:02:10]} 1-0

[Event "December 5 Late 2023"]
[Site "https://www.chess.com"]
[Date "2023.12.05"]
[Round "3"]
[White "Kamsky, Gata"]
[Black "Ambartsumova, Karina"]
[Result "1-0"]
[Board "43"]
[TimeControl "180+1"]
[WhiteFideId "2000024"]
[BlackFideId "4166299"]
[WhiteElo "2934"]
[BlackElo "2642"]
[WhiteTeam "USA"]
[BlackTeam "RUS"]
[WhiteClock "0:00:58"]
[BlackClock "0:00:01"]

1. d4 {[%clk 0:03:00]}  Nf6 {[%clk 0:03:00]} 2. Bf4 {[%clk 0:02:59]}  e6 {[%clk 0:02:59]} 3. e3 {[%clk 0:02:59]}  b6 {[%clk 0:02:59]} 4. Nf3 {[%clk 0:02:58]}  Nh5 {[%clk 0:02:55]} 5. Bg3 {[%clk 0:02:52]}  Bb7 {[%clk 0:02:51]} 6. Nbd2 {[%clk 0:02:52]}  Be7 {[%clk 0:02:50]} 7. Bd3 {[%clk 0:02:36]}  d6 {[%clk 0:02:42]} 8. a4 {[%clk 0:02:29]}  a6 {[%clk 0:02:39]} 9. Be4 {[%clk 0:02:24]}  Bxe4 {[%clk 0:02:33]} 10. Nxe4 {[%clk 0:02:24]}  d5 {[%clk 0:02:28]} 11. Ned2 {[%clk 0:02:23]}  Nxg3 {[%clk 0:02:28]} 12. hxg3 {[%clk 0:02:22]}  Nd7 {[%clk 0:02:27]} 13. c4 {[%clk 0:02:14]}  dxc4 {[%clk 0:02:23]} 14. Nxc4 {[%clk 0:02:14]}  Bb4+ {[%clk 0:02:13]} 15. Ke2 {[%clk 0:02:13]}  b5 {[%clk 0:01:44]} 16. Nce5 {[%clk 0:02:07]}  Nxe5 {[%clk 0:01:43]} 17. Nxe5 {[%clk 0:02:07]}  Qd5 {[%clk 0:01:42]} 18. axb5 {[%clk 0:02:01]}  O-O {[%clk 0:01:21]} 19. Qd3 {[%clk 0:01:56]}  h6 {[%clk 0:01:18]} 20. bxa6 {[%clk 0:01:46]}  c5 {[%clk 0:01:18]} 21. Rhc1 {[%clk 0:01:29]}  Rfd8 {[%clk 0:01:04]} 22. Qc4 {[%clk 0:01:21]}  Qxg2 {[%clk 0:01:00]} 23. Nd3 {[%clk 0:01:17]}  cxd4 {[%clk 0:00:31]} 24. Qxb4 {[%clk 0:01:15]}  dxe3 {[%clk 0:00:31]} 25. Qb7 {[%clk 0:01:04]}  Qh3 {[%clk 0:00:20]} 26. Kxe3 {[%clk 0:01:03]}  Qf5 {[%clk 0:00:18]} 27. Qe4 {[%clk 0:01:03]}  Qg5+ {[%clk 0:00:17]} 28. Kf3 {[%clk 0:01:00]}  Rd5 {[%clk 0:00:01]} 29. Nf4 {[%clk 0:00:58]} 1-0

[Event "December 5 Late 2023"]
[Site "https://www.chess.com"]
[Date "2023.12.05"]
[Round "3"]
[White "Bardyk, Artem"]
[Black "Manukyan, Sargis A."]
[Result "1-0"]
[Board "45"]
[TimeControl "180+1"]
[WhiteFideId "34349979"]
[BlackFideId "13303970"]
[WhiteElo "2861"]
[BlackElo "2591"]
[WhiteTeam "RUS"]
[BlackTeam "ARM"]
[WhiteClock "0:00:04"]
[BlackClock "0:00:12"]

1. e4 {[%clk 0:03:00]}  c5 {[%clk 0:02:59]} 2. c3 {[%clk 0:03:00]}  d5 {[%clk 0:03:00]} 3. exd5 {[%clk 0:03:01]}  Qxd5 {[%clk 0:03:00]} 4. d4 {[%clk 0:03:01]}  Nc6 {[%clk 0:02:55]} 5. Nf3 {[%clk 0:02:59]}  Bg4 {[%clk 0:02:55]} 6. dxc5 {[%clk 0:02:57]}  Qxc5 {[%clk 0:02:45]} 7. h3 {[%clk 0:02:56]}  Rd8 {[%clk 0:02:42]} 8. Nbd2 {[%clk 0:02:48]}  Bh5 {[%clk 0:02:38]} 9. Be2 {[%clk 0:02:41]}  Nf6 {[%clk 0:02:38]} 10. O-O {[%clk 0:02:37]}  e6 {[%clk 0:02:39]} 11. Qa4 {[%clk 0:02:25]}  Bd6 {[%clk 0:02:32]} 12. Nb3 {[%clk 0:02:20]}  Qb6 {[%clk 0:02:23]} 13. Be3 {[%clk 0:02:20]}  Qc7 {[%clk 0:02:22]} 14. Nbd4 {[%clk 0:02:16]}  O-O {[%clk 0:02:11]} 15. Nb5 {[%clk 0:02:10]}  Qe7 {[%clk 0:01:50]} 16. Rfd1 {[%clk 0:01:38]}  Bc5 {[%clk 0:01:47]} 17. Bxc5 {[%clk 0:01:16]}  Qxc5 {[%clk 0:01:46]} 18. Nbd4 {[%clk 0:01:15]}  Nxd4 {[%clk 0:01:30]} 19. Nxd4 {[%clk 0:01:10]}  Bxe2 {[%clk 0:01:08]} 20. Nxe2 {[%clk 0:01:11]}  a6 {[%clk 0:01:06]} 21. Nd4 {[%clk 0:01:02]}  Qc7 {[%clk 0:01:03]} 22. Re1 {[%clk 0:00:57]}  Rd6 {[%clk 0:00:57]} 23. Re2 {[%clk 0:00:54]}  Rfd8 {[%clk 0:00:57]} 24. Rae1 {[%clk 0:00:54]}  g6 {[%clk 0:00:56]} 25. Qc2 {[%clk 0:00:42]}  Nd5 {[%clk 0:00:51]} 26. Qc1 {[%clk 0:00:39]}  Qe7 {[%clk 0:00:47]} 27. Nf3 {[%clk 0:00:30]}  Qf6 {[%clk 0:00:45]} 28. Re4 {[%clk 0:00:28]}  Ne7 {[%clk 0:00:43]} 29. Rf4 {[%clk 0:00:26]}  Qg7 {[%clk 0:00:42]} 30. Ng5 {[%clk 0:00:20]}  Nf5 {[%clk 0:00:25]} 31. Ne4 {[%clk 0:00:20]}  R6d7 {[%clk 0:00:23]} 32. g4 {[%clk 0:00:18]}  Nd6 {[%clk 0:00:19]} 33. Nf6+ {[%clk 0:00:18]}  Kh8 {[%clk 0:00:19]} 34. Nxd7 {[%clk 0:00:18]}  Rxd7 {[%clk 0:00:20]} 35. Rd1 {[%clk 0:00:19]}  f5 {[%clk 0:00:20]} 36. Rfd4 {[%clk 0:00:17]}  Qe5 {[%clk 0:00:16]} 37. Qf4 {[%clk 0:00:09]}  Qxf4 {[%clk 0:00:16]} 38. Rxf4 {[%clk 0:00:09]}  e5 {[%clk 0:00:12]} 39. Rc4 {[%clk 0:00:07]}  Kg7 {[%clk 0:00:11]} 40. Rc5 {[%clk 0:00:05]}  Kf6 {[%clk 0:00:12]} 41. gxf5 {[%clk 0:00:04]}  gxf5 {[%clk 0:00:13]} 42. Kf1 {[%clk 0:00:04]}  Ke6 {[%clk 0:00:13]} 43. Rcd5 {[%clk 0:00:04]}  Rd8 {[%clk 0:00:12]} 44. c4 {[%clk 0:00:05]}  b6 {[%clk 0:00:12]} 45. b4 {[%clk 0:00:05]}  Ke7 {[%clk 0:00:11]} 46. c5 {[%clk 0:00:06]}  bxc5 {[%clk 0:00:11]} 47. bxc5 {[%clk 0:00:07]}  Nf7 {[%clk 0:00:12]} 48. Rxd8 {[%clk 0:00:05]}  Nxd8 {[%clk 0:00:13]} 49. Rd6 {[%clk 0:00:06]}  a5 {[%clk 0:00:12]} 50. Rh6 {[%clk 0:00:05]}  Ne6 {[%clk 0:00:11]} 51. Rxh7+ {[%clk 0:00:06]}  Kd8 {[%clk 0:00:12]} 52. c6 {[%clk 0:00:06]}  e4 {[%clk 0:00:12]} 53. h4 {[%clk 0:00:04]}  f4 {[%clk 0:00:12]} 54. h5 {[%clk 0:00:05]}  a4 {[%clk 0:00:12]} 55. h6 {[%clk 0:00:05]}  e3 {[%clk 0:00:12]} 56. fxe3 {[%clk 0:00:05]}  fxe3 {[%clk 0:00:13]} 57. Rg7 {[%clk 0:00:04]}  e2+ {[%clk 0:00:11]} 58. Kxe2 {[%clk 0:00:04]}  Nd4+ {[%clk 0:00:12]} 59. Kf1 {[%clk 0:00:03]}  Nxc6 {[%clk 0:00:13]} 60. h7 {[%clk 0:00:03]}  Ne7 {[%clk 0:00:13]} 61. h8=Q+ {[%clk 0:00:04]}  Kd7 {[%clk 0:00:12]} 62. Qh7 {[%clk 0:00:04]} 1-0

[Event "December 5 Late 2023"]
[Site "https://www.chess.com"]
[Date "2023.12.05"]
[Round "3"]
[White "Troff, Kayden"]
[Black "Leenhouts, Koen"]
[Result "1-0"]
[Board "47"]
[TimeControl "180+1"]
[WhiteFideId "2047896"]
[BlackFideId "1008439"]
[WhiteElo "2788"]
[BlackElo "2528"]
[WhiteTeam "USA"]
[BlackTeam "NED"]
[WhiteClock "0:00:26"]
[BlackClock "0:00:03"]

1. d4 {[%clk 0:03:00]}  Nf6 {[%clk 0:02:59]} 2. Nf3 {[%clk 0:03:01]}  g6 {[%clk 0:02:59]} 3. Bg5 {[%clk 0:03:00]}  Bg7 {[%clk 0:02:58]} 4. Nc3 {[%clk 0:02:59]}  c5 {[%clk 0:02:52]} 5. e3 {[%clk 0:02:58]}  cxd4 {[%clk 0:02:51]} 6. exd4 {[%clk 0:02:58]}  O-O {[%clk 0:02:49]} 7. Bd3 {[%clk 0:02:57]}  d5 {[%clk 0:02:40]} 8. O-O {[%clk 0:02:55]}  Bg4 {[%clk 0:02:37]} 9. h3 {[%clk 0:02:53]}  Bxf3 {[%clk 0:02:36]} 10. Qxf3 {[%clk 0:02:52]}  Nc6 {[%clk 0:02:37]} 11. Ne2 {[%clk 0:02:52]}  e5 {[%clk 0:02:26]} 12. dxe5 {[%clk 0:02:49]}  Nxe5 {[%clk 0:02:26]} 13. Qg3 {[%clk 0:02:49]}  Nxd3 {[%clk 0:02:17]} 14. Qxd3 {[%clk 0:02:47]}  Qb6 {[%clk 0:02:15]} 15. Rab1 {[%clk 0:02:44]}  Ne4 {[%clk 0:02:03]} 16. Qxd5 {[%clk 0:02:15]}  Nxg5 {[%clk 0:02:02]} 17. Qxg5 {[%clk 0:02:16]}  Qa6 {[%clk 0:02:01]} 18. Nc1 {[%clk 0:02:13]}  Rfe8 {[%clk 0:01:54]} 19. a3 {[%clk 0:02:04]}  Rad8 {[%clk 0:01:52]} 20. Nd3 {[%clk 0:01:56]}  Qc4 {[%clk 0:01:45]} 21. Rbc1 {[%clk 0:01:50]}  Rd5 {[%clk 0:01:40]} 22. Qg3 {[%clk 0:01:46]}  Bh6 {[%clk 0:01:26]} 23. Rce1 {[%clk 0:01:44]}  Rxe1 {[%clk 0:01:22]} 24. Rxe1 {[%clk 0:01:45]}  Rd8 {[%clk 0:00:56]} 25. Re2 {[%clk 0:01:13]}  b6 {[%clk 0:00:51]} 26. Qf3 {[%clk 0:01:04]}  Qc7 {[%clk 0:00:45]} 27. g3 {[%clk 0:01:03]}  Bg7 {[%clk 0:00:41]} 28. c3 {[%clk 0:01:01]}  h5 {[%clk 0:00:40]} 29. h4 {[%clk 0:01:00]}  Qc4 {[%clk 0:00:33]} 30. Nb4 {[%clk 0:00:56]}  Qc7 {[%clk 0:00:15]} 31. Nd5 {[%clk 0:00:54]}  Qd7 {[%clk 0:00:13]} 32. Ne7+ {[%clk 0:00:53]}  Kh7 {[%clk 0:00:12]} 33. Kh2 {[%clk 0:00:40]}  f5 {[%clk 0:00:11]} 34. Nc6 {[%clk 0:00:33]}  Rc8 {[%clk 0:00:11]} 35. Ne5 {[%clk 0:00:28]}  Qd1 {[%clk 0:00:10]} 36. Nf7 {[%clk 0:00:26]}  Re8 {[%clk 0:00:07]} 37. Ng5+ {[%clk 0:00:25]}  Kh6 {[%clk 0:00:03]} 38. Rxe8 {[%clk 0:00:26]} 1-0

[Event "December 5 Late 2023"]
[Site "https://www.chess.com"]
[Date "2023.12.05"]
[Round "3"]
[White "Arnold, Ken"]
[Black "Kosteniuk, Alexandra"]
[Result "1/2-1/2"]
[Board "50"]
[TimeControl "180+1"]
[WhiteFideId "2056836"]
[BlackFideId "4128125"]
[WhiteElo "2434"]
[BlackElo "2749"]
[WhiteTeam "USA"]
[BlackTeam "SUI"]
[WhiteClock "0:00:37"]
[BlackClock "0:00:27"]

1. d4 {[%clk 0:03:00]}  f5 {[%clk 0:02:59]} 2. Nf3 {[%clk 0:03:00]}  Nf6 {[%clk 0:02:59]} 3. g3 {[%clk 0:03:01]}  g6 {[%clk 0:02:59]} 4. Bg2 {[%clk 0:03:01]}  Bg7 {[%clk 0:03:00]} 5. O-O {[%clk 0:03:01]}  O-O {[%clk 0:03:00]} 6. c4 {[%clk 0:03:01]}  d6 {[%clk 0:03:00]} 7. Nc3 {[%clk 0:03:01]}  a5 {[%clk 0:03:01]} 8. Bg5 {[%clk 0:02:58]}  Ne4 {[%clk 0:02:55]} 9. Nxe4 {[%clk 0:02:54]}  fxe4 {[%clk 0:02:55]} 10. Nd2 {[%clk 0:02:52]}  Bxd4 {[%clk 0:02:52]} 11. Nxe4 {[%clk 0:02:52]}  Bxb2 {[%clk 0:02:49]} 12. Rb1 {[%clk 0:02:51]}  Bg7 {[%clk 0:02:48]} 13. Nc3 {[%clk 0:02:48]}  Nc6 {[%clk 0:02:46]} 14. Nd5 {[%clk 0:02:37]}  h6 {[%clk 0:02:41]} 15. Be3 {[%clk 0:02:27]}  e6 {[%clk 0:02:40]} 16. Nf4 {[%clk 0:02:25]}  Qe8 {[%clk 0:02:39]} 17. h4 {[%clk 0:02:05]}  Ne5 {[%clk 0:02:22]} 18. Bxb7 {[%clk 0:01:55]}  Bxb7 {[%clk 0:02:22]} 19. Rxb7 {[%clk 0:01:54]}  Qc6 {[%clk 0:02:22]} 20. Qb3 {[%clk 0:01:46]}  Rae8 {[%clk 0:02:06]} 21. Qb5 {[%clk 0:01:25]}  Rf7 {[%clk 0:02:01]} 22. Qxc6 {[%clk 0:01:22]}  Nxc6 {[%clk 0:02:01]} 23. Nxg6 {[%clk 0:01:21]}  e5 {[%clk 0:02:02]} 24. h5 {[%clk 0:01:07]}  Nb4 {[%clk 0:02:00]} 25. c5 {[%clk 0:01:00]}  Nxa2 {[%clk 0:01:54]} 26. Ra1 {[%clk 0:00:58]}  Nc3 {[%clk 0:01:54]} 27. Rxa5 {[%clk 0:00:58]}  Nxe2+ {[%clk 0:01:54]} 28. Kg2 {[%clk 0:00:57]}  Nd4 {[%clk 0:01:48]} 29. Raa7 {[%clk 0:00:53]}  Nc6 {[%clk 0:01:20]} 30. Ra6 {[%clk 0:00:53]}  Nd4 {[%clk 0:01:06]} 31. cxd6 {[%clk 0:00:50]}  cxd6 {[%clk 0:01:05]} 32. Rxf7 {[%clk 0:00:50]}  Kxf7 {[%clk 0:01:05]} 33. Rxd6 {[%clk 0:00:50]}  Nf5 {[%clk 0:01:05]} 34. Ra6 {[%clk 0:00:49]}  Nxe3+ {[%clk 0:01:04]} 35. fxe3 {[%clk 0:00:50]}  e4 {[%clk 0:01:05]} 36. g4 {[%clk 0:00:46]}  Bf6 {[%clk 0:00:55]} 37. Kg3 {[%clk 0:00:38]}  Bg5 {[%clk 0:00:53]} 38. Nf4 {[%clk 0:00:38]}  Rb8 {[%clk 0:00:50]} 39. Ra7+ {[%clk 0:00:35]}  Kg8 {[%clk 0:00:50]} 40. Ra2 {[%clk 0:00:35]}  Rb3 {[%clk 0:00:49]} 41. Re2 {[%clk 0:00:35]}  Be7 {[%clk 0:00:47]} 42. Nd5 {[%clk 0:00:31]}  Bg5 {[%clk 0:00:45]} 43. Nf4 {[%clk 0:00:29]}  Kf7 {[%clk 0:00:45]} 44. Nh3 {[%clk 0:00:28]}  Bf6 {[%clk 0:00:43]} 45. Kf4 {[%clk 0:00:28]}  Rb4 {[%clk 0:00:41]} 46. g5 {[%clk 0:00:28]}  hxg5+ {[%clk 0:00:38]} 47. Nxg5+ {[%clk 0:00:29]}  Bxg5+ {[%clk 0:00:39]} 48. Kxg5 {[%clk 0:00:29]}  Rb5+ {[%clk 0:00:39]} 49. Kg4 {[%clk 0:00:28]}  Kg7 {[%clk 0:00:23]} 50. Rh2 {[%clk 0:00:28]}  Kh6 {[%clk 0:00:21]} 51. Kf4 {[%clk 0:00:28]}  Rb4 {[%clk 0:00:21]} 52. Rh1 {[%clk 0:00:27]}  Ra4 {[%clk 0:00:21]} 53. Rh2 {[%clk 0:00:27]}  Rb4 {[%clk 0:00:21]} 54. Rh1 {[%clk 0:00:27]}  Ra4 {[%clk 0:00:21]} 55. Rb1 {[%clk 0:00:27]}  Kxh5 {[%clk 0:00:21]} 56. Rb5+ {[%clk 0:00:27]}  Kg6 {[%clk 0:00:21]} 57. Re5 {[%clk 0:00:27]}  Kf6 {[%clk 0:00:22]} 58. Rxe4 {[%clk 0:00:28]}  Rxe4+ {[%clk 0:00:22]} 59. Kxe4 {[%clk 0:00:29]}  Ke6 {[%clk 0:00:22]} 60. Kf4 {[%clk 0:00:29]}  Kf6 {[%clk 0:00:22]} 61. e4 {[%clk 0:00:30]}  Ke6 {[%clk 0:00:23]} 62. e5 {[%clk 0:00:31]}  Ke7 {[%clk 0:00:23]} 63. Ke4 {[%clk 0:00:32]}  Ke6 {[%clk 0:00:23]} 64. Kf4 {[%clk 0:00:32]}  Ke7 {[%clk 0:00:24]} 65. Ke4 {[%clk 0:00:32]}  Ke6 {[%clk 0:00:24]} 66. Kd4 {[%clk 0:00:33]}  Ke7 {[%clk 0:00:25]} 67. Kd5 {[%clk 0:00:34]}  Kd7 {[%clk 0:00:25]} 68. e6+ {[%clk 0:00:34]}  Ke7 {[%clk 0:00:25]} 69. Ke5 {[%clk 0:00:35]}  Ke8 {[%clk 0:00:26]} 70. Kd6 {[%clk 0:00:36]}  Kd8 {[%clk 0:00:26]} 71. Kd5 {[%clk 0:00:36]}  Ke7 {[%clk 0:00:26]} 72. Ke5 {[%clk 0:00:36]}  Ke8 {[%clk 0:00:26]} 73. Kf5 {[%clk 0:00:37]}  Ke7 {[%clk 0:00:27]} 74. Ke5 {[%clk 0:00:37]} 1/2-1/2

[Event "December 5 Late 2023"]
[Site "https://www.chess.com"]
[Date "2023.12.05"]
[Round "3"]
[White "Vlassov, Nikolai"]
[Black "Pranav, V"]
[Result "0-1"]
[Board "52"]
[TimeControl "180+1"]
[WhiteFideId "4103360"]
[BlackFideId "25060783"]
[WhiteElo "2660"]
[BlackElo "3051"]
[WhiteTeam "FID"]
[BlackTeam "IND"]
[WhiteClock "0:00:00"]
[BlackClock "0:00:03"]

1. e4 {[%clk 0:03:00]}  e5 {[%clk 0:02:59]} 2. Bc4 {[%clk 0:02:59]}  Nc6 {[%clk 0:02:58]} 3. f4 {[%clk 0:02:59]}  Bc5 {[%clk 0:02:55]} 4. Nf3 {[%clk 0:02:59]}  d6 {[%clk 0:02:55]} 5. Nc3 {[%clk 0:02:58]}  Nf6 {[%clk 0:02:52]} 6. f5 {[%clk 0:02:58]}  g6 {[%clk 0:02:45]} 7. d3 {[%clk 0:02:55]}  gxf5 {[%clk 0:02:30]} 8. Bg5 {[%clk 0:02:53]}  Rg8 {[%clk 0:02:27]} 9. Qd2 {[%clk 0:02:46]}  f4 {[%clk 0:02:25]} 10. Bh4 {[%clk 0:02:19]}  Rg4 {[%clk 0:02:23]} 11. h3 {[%clk 0:02:07]}  Be3 {[%clk 0:02:00]} 12. hxg4 {[%clk 0:01:44]}  Bxd2+ {[%clk 0:01:58]} 13. Kxd2 {[%clk 0:01:45]}  Be6 {[%clk 0:01:57]} 14. Bg5 {[%clk 0:01:40]}  Nb8 {[%clk 0:01:36]} 15. Rxh7 {[%clk 0:01:19]}  Nxh7 {[%clk 0:01:01]} 16. Bxd8 {[%clk 0:01:19]}  Kxd8 {[%clk 0:01:02]} 17. Rh1 {[%clk 0:01:11]}  Nf8 {[%clk 0:01:01]} 18. Rh8 {[%clk 0:01:07]}  Nd7 {[%clk 0:00:55]} 19. g5 {[%clk 0:00:57]}  Bxc4 {[%clk 0:00:43]} 20. dxc4 {[%clk 0:00:56]}  c6 {[%clk 0:00:44]} 21. Ne2 {[%clk 0:00:46]}  Kc7 {[%clk 0:00:41]} 22. g3 {[%clk 0:00:43]}  Re8 {[%clk 0:00:39]} 23. Nh4 {[%clk 0:00:27]}  Nc5 {[%clk 0:00:29]} 24. gxf4 {[%clk 0:00:27]}  exf4 {[%clk 0:00:29]} 25. Nxf4 {[%clk 0:00:25]}  Nxe4+ {[%clk 0:00:29]} 26. Kd3 {[%clk 0:00:23]}  Nxg5 {[%clk 0:00:28]} 27. Nf5 {[%clk 0:00:22]}  Kd7 {[%clk 0:00:24]} 28. b4 {[%clk 0:00:20]}  Ne4 {[%clk 0:00:18]} 29. Nh5 {[%clk 0:00:15]}  a6 {[%clk 0:00:11]} 30. a4 {[%clk 0:00:14]}  d5 {[%clk 0:00:07]} 31. cxd5 {[%clk 0:00:14]}  cxd5 {[%clk 0:00:08]} 32. c4 {[%clk 0:00:09]}  dxc4+ {[%clk 0:00:08]} 33. Kxc4 {[%clk 0:00:10]}  Nd6+ {[%clk 0:00:05]} 34. Nxd6 {[%clk 0:00:09]}  Kxd6 {[%clk 0:00:06]} 35. Nf6 {[%clk 0:00:08]}  Rc8+ {[%clk 0:00:06]} 36. Kd3 {[%clk 0:00:07]}  Ke6 {[%clk 0:00:02]} 37. Ne4 {[%clk 0:00:08]}  Rd8+ {[%clk 0:00:02]} 38. Kc4 {[%clk 0:00:08]}  Ke7 {[%clk 0:00:03]} 39. Nc5 {[%clk 0:00:07]}  Rb8 {[%clk 0:00:03]} 40. a5 {[%clk 0:00:07]}  Rc8 {[%clk 0:00:02]} 41. b5 {[%clk 0:00:07]}  axb5+ {[%clk 0:00:02]} 42. Kxb5 {[%clk 0:00:07]}  Rc7 {[%clk 0:00:02]} 43. Kb6 {[%clk 0:00:07]}  Rc6+ {[%clk 0:00:03]} 44. Kb5 {[%clk 0:00:08]}  Rc7 {[%clk 0:00:03]} 45. Kb6 {[%clk 0:00:08]}  Rc8 {[%clk 0:00:03]} 46. Nxb7 {[%clk 0:00:08]}  Nd7+ {[%clk 0:00:03]} 47. Kb5 {[%clk 0:00:08]}  Rxh8 {[%clk 0:00:04]} 48. a6 {[%clk 0:00:08]}  Rh1 {[%clk 0:00:04]} 49. a7 {[%clk 0:00:07]}  Rb1+ {[%clk 0:00:04]} 50. Ka6 {[%clk 0:00:07]}  Rb6+ {[%clk 0:00:02]} 51. Ka5 {[%clk 0:00:07]}  Rb1 {[%clk 0:00:03]} 52. Ka6 {[%clk 0:00:07]}  Nb6 {[%clk 0:00:03]} 53. Nc5 {[%clk 0:00:00]}  Na8 {[%clk 0:00:03]} 0-1

[Event "December 5 Late 2023"]
[Site "https://www.chess.com"]
[Date "2023.12.05"]
[Round "3"]
[White "Ferreira, Vitor Hugo Vieira"]
[Black "Matlakov, Maxim"]
[Result "0-1"]
[Board "54"]
[TimeControl "180+1"]
[WhiteFideId "2119765"]
[BlackFideId "4168003"]
[WhiteElo "2518"]
[BlackElo "2998"]
[WhiteTeam "BRA"]
[BlackTeam "RUS"]
[WhiteClock "0:00:55"]
[BlackClock "0:01:30"]

1. d4 {[%clk 0:03:00]}  g6 {[%clk 0:02:59]} 2. c4 {[%clk 0:03:00]}  Bg7 {[%clk 0:03:00]} 3. Nc3 {[%clk 0:03:00]}  d6 {[%clk 0:02:59]} 4. e4 {[%clk 0:02:59]}  c5 {[%clk 0:02:59]} 5. d5 {[%clk 0:02:49]}  Bxc3+ {[%clk 0:02:59]} 6. bxc3 {[%clk 0:02:49]}  e5 {[%clk 0:02:59]} 7. h4 {[%clk 0:02:44]}  h5 {[%clk 0:02:54]} 8. Bg5 {[%clk 0:02:38]}  f6 {[%clk 0:02:54]} 9. Be3 {[%clk 0:02:36]}  Qe7 {[%clk 0:02:53]} 10. f3 {[%clk 0:02:34]}  Kd8 {[%clk 0:02:53]} 11. Qb3 {[%clk 0:02:32]}  Kc7 {[%clk 0:02:53]} 12. Nh3 {[%clk 0:02:28]}  Nd7 {[%clk 0:02:46]} 13. a4 {[%clk 0:02:28]}  a5 {[%clk 0:02:46]} 14. Nf2 {[%clk 0:02:25]}  Nh6 {[%clk 0:02:45]} 15. Be2 {[%clk 0:02:15]}  Nf7 {[%clk 0:02:43]} 16. Kd2 {[%clk 0:02:14]}  f5 {[%clk 0:02:38]} 17. Kc2 {[%clk 0:02:10]}  Ra6 {[%clk 0:02:35]} 18. Rab1 {[%clk 0:02:08]}  Nb6 {[%clk 0:02:34]} 19. Qa3 {[%clk 0:01:57]}  Bd7 {[%clk 0:02:31]} 20. Rb5 {[%clk 0:01:57]}  Bxb5 {[%clk 0:02:28]} 21. cxb5 {[%clk 0:01:53]}  Raa8 {[%clk 0:02:28]} 22. Nd3 {[%clk 0:01:52]}  Nc4 {[%clk 0:02:23]} 23. Qc1 {[%clk 0:01:52]}  Nxe3+ {[%clk 0:02:20]} 24. Qxe3 {[%clk 0:01:53]}  fxe4 {[%clk 0:02:15]} 25. fxe4 {[%clk 0:01:51]}  b6 {[%clk 0:02:14]} 26. Nb2 {[%clk 0:01:51]}  Raf8 {[%clk 0:02:13]} 27. Nc4 {[%clk 0:01:51]}  Nh6 {[%clk 0:02:06]} 28. Bf3 {[%clk 0:01:44]}  Rf4 {[%clk 0:02:03]} 29. g3 {[%clk 0:01:29]}  Ng4 {[%clk 0:01:58]} 30. Qe2 {[%clk 0:01:27]}  Rxf3 {[%clk 0:01:56]} 31. Qxf3 {[%clk 0:01:27]}  Rf8 {[%clk 0:01:57]} 32. Qd3 {[%clk 0:01:22]}  Nf2 {[%clk 0:01:56]} 33. Qf1 {[%clk 0:01:21]}  Nxh1 {[%clk 0:01:47]} 34. Qxh1 {[%clk 0:01:19]}  Qd7 {[%clk 0:01:46]} 35. Ne3 {[%clk 0:01:01]}  Rf2+ {[%clk 0:01:33]} 36. Kd3 {[%clk 0:01:01]}  Qf7 {[%clk 0:01:32]} 37. Qh3 {[%clk 0:01:00]}  Qf3 {[%clk 0:01:31]} 38. Qe6 {[%clk 0:00:55]}  Qe2# {[%clk 0:01:30]} 0-1